Cogmind - Beta 16.1 @@@ ROGUE MODE // 2026.03.11 @ 00:17:06 Player: Ceorik Result: Escaped! Performance ------------- Evolutions (9) 4500 Regions Visited (25) 5000 Robots Destroyed (330) 1650 Value Destroyed (17162) 17162 Prototype IDs (10) 200 Alien Tech Used (0) 0 Bonus (15846) 15846 TOTAL SCORE: 44358 Bonus ------- Triggered High Security 500 High Alert Combat Kills 3031 Follower Combat Kills 3415 Hunted by Unchained 500 Entered Garrisons 1400 Used RIF Installer 3500 Entered DSFs 500 Win 3000 Cogmind --------- Core Integrity 1077/1600 Matter 120/300 Energy 99/100 System Corruption 2% Temperature Cool (0) Movement Core (50) Location To Epsilon Eridani Parts ------- > --- POWER (2) -------- (None) > --- PROPULSION (9) --- (None) > --- UTILITY (11) ----- (None) > --- WEAPON (3) ------- (None) > --- INVENTORY (5) ---- Improved Fusion Compressor HERF Cannon HERF Cannon Improved Matter Neutralizer Improved Remote Datajack Peak State ------------ > --- POWER ------------ Light Nuclear Core Antimatter Reactor > --- PROPULSION ------- Improved Thunder Leg VTOL Module VTOL Module Nuclear Pulse Array Field Propulsion Array Field Propulsion Array > --- UTILITY ---------- Advanced Coolant Injector Advanced Sensor Array Advanced Signal Interpreter Improved Cloaking Device Hacking Suite Improved Hacking Suite Improved Hacking Suite System Shield Makeshift System Shield Improved System Shield Relay Coupler [Swarmer] > --- WEAPON ----------- Improved Matter Neutralizer Chainsword > --- INVENTORY -------- Improved Fusion Compressor HERF Cannon HERF Cannon Improved Remote Datajack [Rating: 129] Favorites ----------- Power Light Antimatter Reactor Engine Improved Deuterium Engine Power Core Micro Fission Core Reactor Light Antimatter Reactor Propulsion Light Treads Treads Light Treads Leg Carbon-fiber Leg Wheel Compact Wheel Hover Unit Improved Antigrav System Flight Unit VTOL Module Utility Huge Storage Unit Device Improved Heat Sink Storage Huge Storage Unit Processor Advanced Signal Interpreter Hackware Relay Coupler [Grunt] Protection Improved Medium Armor Plating Weapon Remote Datajack Energy Gun Heavy Laser Energy Cannon Heavy Particle Cannon Ballistic Gun Improved Assault Rifle Ballistic Cannon Heavy Assault Cannon Launcher Improved Proton Missile Launcher Special Weapon Remote Datajack Slashing Weapon Power Sword Piercing Weapon Spear Special Melee Weapon Datajack Build | -11 -10 -9 -9 -9 -8 -8 -8 -8 -7 -7 -7 -7 -6 -6 -6 -6 -5 -4 -4 -4 -3 -3 -2 -2 -1 ------- Run | Yrd Mat Mat Sto Gar Mat Gar Mat Gar Fac Gar Fac Gar Fac Gar Fac Gar Fac Fac Upp Upp Res Tes Res DSF Acc Slots Evolved 18 | . . 2 . . 2 . . . 2 . . . 2 . . . 2 2 . . 2 . 2 . 2 Power 1 | . . . . . . . . . . . . . . . . . 1 . . . . . . . . Propulsion 7 | . . 1 . . 1 . . . . . . . . . . . . 2 . . . . 2 . 1 Utility 9 | . . 1 . . 1 . . . 2 . . . 1 . . . 1 . . . 2 . . . 1 Weapon 1 | . . . . . . . . . . . . . 1 . . . . . . . . . . . . Parts Attached 364 | 10 7 23 9 9 32 4 9 26 17 25 3 15 23 28 23 28 18 21 18 1 4 4 . . 7 Power 36 | 1 . 1 3 1 4 . 2 2 1 3 . 1 2 3 1 3 2 3 2 . 1 . . . . Engine 14 | 1 . 1 3 1 2 . . . . . . 1 1 2 . . . 2 . . . . . . . Core 13 | . . . . . 2 . 2 1 . 1 . . . 1 1 1 2 1 1 . . . . . . Reactor 9 | . . . . . . . . 1 1 2 . . 1 . . 2 . . 1 . 1 . . . . Propulsion 95 | 5 1 8 2 3 9 1 1 8 3 6 . 5 6 4 6 7 5 4 6 1 . . . . 4 Treads 33 | 2 . 3 . 1 5 . . 5 1 3 . . 3 2 3 1 4 . . . . . . . . Leg 21 | 2 . . . . . . . 1 . 2 . 5 . 2 . 6 1 . 1 . . . . . 1 Wheel 27 | 1 1 5 2 2 4 1 1 1 2 1 . . 3 . 3 . . . . . . . . . . Hover 4 | . . . . . . . . 1 . . . . . . . . . 3 . . . . . . . Flight 10 | . . . . . . . . . . . . . . . . . . 1 5 1 . . . . 3 Utility 153 | 2 3 8 1 2 13 1 3 12 11 11 2 8 10 15 10 12 7 10 5 . 2 3 . . 2 Device 40 | 1 1 3 . . 6 1 . 2 1 1 . . 3 5 4 1 1 5 2 . 2 1 . . . Storage 7 | 1 2 . . . 1 . . . 1 . . . 1 . . . . . . . . 1 . . . Processor 7 | . . 1 . . 1 . . . . . . . . . . . 1 3 . . . 1 . . . Hackware 66 | . . . . . . . 2 8 5 8 1 5 6 7 5 8 4 2 3 . . . . . 2 Protection 33 | . . 4 1 2 5 . 1 2 4 2 1 3 . 3 1 3 1 . . . . . . . . Artifact . | . . . . . . . . . . . . . . . . . . . . . . . . . . Weapon 80 | 2 3 6 3 3 6 2 3 4 2 5 1 1 5 6 6 6 4 4 5 . 1 1 . . 1 Energy Gun 18 | 1 2 1 . 1 3 1 1 1 . . . . . 4 . 2 1 . . . . . . . . Energy Cannon 11 | . . . . . . . 1 1 . . 1 . 1 . 1 . . 3 1 . 1 1 . . . Ballistic Gun 15 | 1 . 4 2 1 2 . 1 1 . 1 . . . 1 1 . . . . . . . . . . Ballistic Cannon 9 | . . . . . . . . . . 3 . 1 2 . . 3 . . . . . . . . . Launcher 7 | . 1 . 1 1 . . . . . . . . 1 1 1 . 1 . . . . . . . . Special Weapon 12 | . . . . . . 1 . 1 2 1 . . 1 . 1 1 1 1 2 . . . . . . Impact Weapon . | . . . . . . . . . . . . . . . . . . . . . . . . . . Slashing Weapon 5 | . . 1 . . . . . . . . . . . . 2 . . . 1 . . . . . 1 Piercing Weapon 2 | . . . . . . . . . . . . . . . . . 1 . 1 . . . . . . Special Melee Weapon 1 | . . . . . 1 . . . . . . . . . . . . . . . . . . . . Unidentified Prototypes 4 | . . . . . . . 1 . . . . . . . . . . . . . 1 2 . . . Corrupted Parts 3 | . . 1 . . . . . . . . . . . . . . 2 . . . . . . . . System Corruption 18 | . . 4 . . . . . . . . . . . . . . 14 . . . . . . . . Parts Lost 126 | . . 11 1 6 8 . 4 7 3 10 . 4 7 13 1 6 16 11 4 . 1 . . 1 12 Power 14 | . . . . 1 1 . 1 . 1 3 . . . 2 . . 2 2 . . . . . . 1 Propulsion 47 | . . 4 . 3 4 . 1 4 . 4 . 2 3 1 . 4 3 4 2 . 1 . . . 7 Utility 41 | . . 4 . 2 2 . 1 3 . 1 . 1 1 7 . 1 8 4 1 . . . . 1 4 Weapon 24 | . . 3 1 . 1 . 1 . 2 2 . 1 3 3 1 1 3 1 1 . . . . . . Highest Loss Streak 11 | . . 4 1 2 3 . 2 4 2 2 . 2 3 7 1 6 11 4 3 . 1 . . 1 11 To Critical Strikes 2 | . . . . . . . . . . . . . . . . . . 1 . . . . . . 1 Average Backups 20 | 2 9 19 24 24 24 24 23 24 23 19 21 22 21 20 23 21 14 4 3 5 5 4 5 5 4 Power 2 | . . 1 2 2 1 2 1 2 2 1 1 1 2 3 3 4 2 1 1 2 2 1 1 1 1 Propulsion . | 1 2 1 2 1 . . . . 1 . . . . 1 . . . . . 1 1 . . . . Utility 12 | . 3 9 13 15 15 15 15 13 14 14 16 15 15 12 14 13 10 1 . . . . . . . Weapon 3 | . 3 7 6 5 6 6 6 5 4 3 3 2 3 2 4 1 . 1 1 2 2 2 3 3 2 Tool/Special . | . . . . . . . . . . . . . . . . . . . . . . . . . . Unused Backups 74 | . 1 4 1 4 10 8 . 3 2 3 2 5 5 5 5 7 7 . . . . . . . 2 Power 13 | . . . . . 2 . . 1 . . . 1 4 1 2 1 1 . . . . . . . . Propulsion 3 | . 1 . . . . . . . . . . . . . 2 . . . . . . . . . . Utility 43 | . . 1 . 4 5 8 . 1 1 2 2 4 . 4 . 6 5 . . . . . . . . Weapon 14 | . . 3 1 . 3 . . 1 1 1 . . 1 . 1 . . . . . . . . . 2 Tool/Special 1 | . . . . . . . . . . . . . . . . . 1 . . . . . . . . Average Slot Usage (%) 88 | . 99 94 99 99 97 100 98 96 93 88 84 84 83 84 98 85 64 70 44 78 71 75 78 77 71 Engine 3 | . 14 11 11 11 6 9 4 . . . . 3 4 2 . . . 6 . . . . . . . Core 2 | . . . . . 2 . 3 5 . 1 7 3 . 3 6 . 3 . 1 . . 2 4 4 3 Reactor 1 | . . . . . . . . 3 7 5 . . 1 . . 5 2 . . 5 4 4 4 4 3 Treads 10 | . 18 21 . 3 13 9 9 12 12 11 15 6 2 22 23 . 7 7 . . . . . . . Leg 8 | . . . . . . . . 7 2 . . 16 20 . . 24 8 2 . . . 3 4 4 2 Wheel 6 | . 9 6 33 28 20 27 26 11 9 8 7 2 2 . 2 . . . . . . . . . . Device 8 | . 14 13 11 10 16 18 10 8 7 2 7 7 9 7 5 7 4 11 3 5 5 9 13 13 11 Storage 7 | . 14 11 11 11 9 9 9 9 7 7 7 7 6 6 6 5 3 . . . . 2 4 3 . Hackware 13 | . . . . . . . 5 12 19 29 23 19 15 17 26 11 14 7 14 26 23 23 21 21 25 Protection 7 | . . 8 11 10 9 9 11 5 9 5 7 6 6 8 6 10 3 . . . . . . . . Energy Gun 3 | . 16 10 . . 9 9 6 4 . . . . . 7 9 . . . . . . . . . . Energy Cannon 1 | . . . . . . . 1 4 7 1 . . . 2 2 . . 1 2 . . . . . . Ballistic Gun 3 | . 10 9 21 21 7 7 3 . . . . . . . . . . . . . . . . . . Ballistic Cannon 2 | . . . . . . . . . . 4 2 6 5 . . 7 6 . . . . . . . . Special Weapon 2 | . . . . . . 1 6 7 6 5 4 . 4 . 1 5 3 . 4 5 4 1 . . . Peak Build Rating 129 | 7 11 19 20 21 30 33 33 41 57 58 54 55 67 74 77 77 91 105 81 73 85 102 95 95 129 Average Rating 50 | 4 7 14 19 19 27 31 30 36 49 54 50 50 58 64 69 66 63 79 46 73 75 84 95 92 103 On Entrance 48 | . 7 11 19 20 18 29 33 29 38 57 54 53 52 66 73 63 73 32 31 75 73 72 95 95 86 Avg Prop Armor Cover (%) 13 | 6 . 12 . 7 11 8 7 18 14 12 13 12 9 10 7 12 35 22 8 . . 8 8 8 7 Naked Turns 40 | . . . . . . . . . . . . . . . . 18 12 . . . . . . . 10 Heaviest Build 160 | 15 92 102 102 102 110 102 104 106 109 114 114 118 126 140 125 160 147 33 27 26 39 29 29 29 39 Greatest Support 117 | 40 40 60 36 36 42 48 48 42 40 40 28 59 59 102 117 65 102 35 36 35 40 32 32 32 64 Greatest Overweight (x) 48 | . 2 5 2 3 6 2 3 6 6 4 4 4 11 11 10 6 48 1 . . 1 . . 5 1 Average Overweight (x) 1 | . . 1 2 2 2 2 1 4 3 2 3 2 3 . . 1 . . . . . . . . . Largest Inventory Capacity 25 | 8 25 25 25 25 25 25 25 25 25 25 25 25 25 25 25 25 25 5 5 5 5 5 5 5 5 Average Capacity 22 | 6 12 25 25 25 25 25 25 25 25 25 25 25 25 25 25 24 18 5 5 5 5 5 5 5 5 Most Carried 25 | 5 18 25 25 25 25 25 25 25 25 25 25 25 25 25 25 25 24 5 5 5 5 5 5 5 5 Average Carried 21 | 2 9 19 24 24 24 24 23 24 24 21 24 24 23 21 24 23 15 4 3 5 5 4 5 5 4 Final Capacity 25 | 8 25 25 25 25 25 25 25 25 25 25 25 25 25 25 25 25 5 5 5 5 5 5 5 5 5 Final Carried 25 | 3 18 25 25 24 25 25 23 25 25 25 25 25 22 25 24 25 5 4 5 5 5 5 5 5 5 Class Distribution -------------------- 22% | Botlord-Mutant 22% | Botlord-Tank 20% | Bothacker-Mutant 11% | Mutant 8% | Scavenger-Mutant 3% | Commander-Mutant Dominant Class ---------------- Mutant | -10/Materials Scavenger-Mutant | -9/Materials Commander-Mutant | -9/Storage Mutant | -9/Garrison Scavenger-Mutant | -8/Materials Bothacker-Mutant | -8/Garrison Bothacker-Mutant | -8/Materials Bothacker-Mutant | -8/Garrison Bothacker-Mutant | -7/Factory Bothacker-Mutant | -7/Garrison Botlord-Mutant | -7/Factory Botlord-Mutant | -7/Garrison Botlord-Tank | -6/Factory Botlord-Mutant | -6/Garrison Commander-Mutant | -6/Factory Botlord-Tank | -6/Garrison Botlord-Tank | -5/Factory Hacker-Scout | -4/Factory Hacker-Sprinter | -4/Upper Caves Hacker-Sprinter | -4/Upper Caves Hacker-Sprinter | -3/Research Hacker-Mutant | -3/Testing Hacker-Mutant | -2/Research Hacker-Mutant | -2/DSF Hacker-Mutant | -1/Access Resources | -11 -10 -9 -9 -9 -8 -8 -8 -8 -7 -7 -7 -7 -6 -6 -6 -6 -5 -4 -4 -4 -3 -3 -2 -2 -1 ----------- Run | Yrd Mat Mat Sto Gar Mat Gar Mat Gar Fac Gar Fac Gar Fac Gar Fac Gar Fac Fac Upp Upp Res Tes Res DSF Acc Matter Collected 13339 | 317 469 1193 398 787 735 48 551 555 290 1138 132 1896 1028 971 521 1244 467 252 347 . . . . . . Remotely 347 | . . . . . . . . . . . . . . . . . . . 347 . . . . . . Salvage Created 12511 | 83 509 1328 768 975 1625 . 281 731 383 629 . 1230 755 858 491 415 1276 125 49 . . . . . . Parts 615 | 3 32 85 42 65 72 . 12 47 19 32 . 48 37 25 33 16 37 7 3 . . . . . . Haulers Intercepted 12 | . 2 3 4 . 2 . . . . . . . . . . . 1 . . . . . . . . Recyclers Shooed 10 | 1 1 3 1 . 2 . . . . . . . . . 2 . . . . . . . . . . Parts Field Recycled . | . . . . . . . . . . . . . . . . . . . . . . . . . . Retrieved Matter . | . . . . . . . . . . . . . . . . . . . . . . . . . . Parts Self-Destructed 4 | . . . . . . . . . . . . . . . . . . . 4 . . . . . . Prevented . | . . . . . . . . . . . . . . . . . . . . . . . . . . Parts Restored . | . . . . . . . . . . . . . . . . . . . . . . . . . . Kills | -11 -10 -9 -9 -9 -8 -8 -8 -8 -7 -7 -7 -7 -6 -6 -6 -6 -5 -4 -4 -4 -3 -3 -2 -2 -1 ------- Run | Yrd Mat Mat Sto Gar Mat Gar Mat Gar Fac Gar Fac Gar Fac Gar Fac Gar Fac Fac Upp Upp Res Tes Res DSF Acc Combat Hostiles Destroyed 261 | . 17 23 8 31 23 . 4 15 7 21 . 36 21 21 5 10 17 2 . . . . . . . Melee 4 | . . 2 . . . . . . . . . . . . . . 1 1 . . . . . . . Guns 100 | . 5 21 8 24 22 . 2 7 . 5 . . . 3 3 . . . . . . . . . . Cannons 105 | . . . . . . . 1 8 7 15 . 35 17 6 2 9 4 1 . . . . . . . AOE 41 | . 12 . . 7 . . . . . 1 . . 4 10 . . 7 . . . . . . . . Classes Destroyed 18 | 2 5 5 . . . . . 2 . 1 . 1 2 . . . . . . . . . . . . Worker 16 | . . 4 2 . 3 . 1 . . . . . 1 . 5 . . . . . . . . . . Builder 8 | . 1 3 . . . . 1 . . . . . 2 . 1 . . . . . . . . . . Tunneler 4 | 1 1 . . . . . . . 1 . . . . . 1 . . . . . . . . . . Hauler 12 | . 2 3 4 . 2 . . . . . . . . . . . 1 . . . . . . . . Recycler 13 | 1 2 2 2 . 5 . . . . . . . . . 1 . . . . . . . . . . Mechanic 2 | . . . . . . . . . . . . . 1 . . . 1 . . . . . . . . Operator 3 | . . 1 . . 1 . . . . . . . . . . . . 1 . . . . . . . Watcher 6 | . 3 1 . . 2 . . . . . . . . . . . . . . . . . . . . Swarmer 65 | . 12 6 . 14 4 . . 2 . 5 . 12 3 4 . . . 1 2 . . . . . . Cutter 4 | . . . . . . . . 1 . 3 . . . . . . . . . . . . . . . Saboteur 2 | . . . . . . . . . . . . . 1 . . . 1 . . . . . . . . Grunt 105 | . 5 10 2 7 11 . 2 3 4 9 . 9 13 15 . 5 10 . . . . . . . . Brawler 4 | . . 1 . . . . . . . . . 2 . 1 . . . . . . . . . . . Duelist 6 | . . 1 . . 1 . . 1 . . . 1 . . . 1 1 . . . . . . . . Sentry 52 | . . 5 6 10 7 . 2 6 2 3 . 5 . . . . 5 1 . . . . . . . Specialist 3 | . . . . . . . . . . . . 3 . . . . . . . . . . . . . Hunter 4 | . . . . . . . . . . 1 . 2 . . 1 . . . . . . . . . . Programmer 20 | . . . . . . . . 3 1 . . 2 5 1 4 4 . . . . . . . . . Savage 1 | . . . . . . . . . . . . 1 . . . . . . . . . . . . . Best Kill Streak 16 | 2 5 5 7 5 5 . 2 3 3 3 . 9 6 7 2 4 16 1 . . . . . . . Combat Bots Only 14 | . 3 4 2 5 5 . 2 3 2 3 . 9 5 7 1 4 14 1 . . . . . . . Max Kills in Single Turn 4 | 1 4 2 1 4 1 . 1 1 1 1 . 2 4 2 1 1 2 1 1 . . . . . . Gunslinging 1 | . . . . 1 . . . . . . . . . . . . . . . . . . . . . Exploded 4 | . 3 . . 4 . . . . . 1 . . 2 2 . . 2 . . . . . . . . Melee 1 | . . 1 . . . . . . . . . . . . . . 1 1 . . . . . . . Uniques/NPCs Destroyed . | . . . . . . . . . . . . . . . . . . . . . . . . . . Combat | -11 -10 -9 -9 -9 -8 -8 -8 -8 -7 -7 -7 -7 -6 -6 -6 -6 -5 -4 -4 -4 -3 -3 -2 -2 -1 -------- Run | Yrd Mat Mat Sto Gar Mat Gar Mat Gar Fac Gar Fac Gar Fac Gar Fac Gar Fac Fac Upp Upp Res Tes Res DSF Acc Hostile Shots Fired 2387 | . 63 153 28 106 160 . 44 77 139 214 . 212 188 175 65 170 265 110 52 . 8 4 . 2 152 Missed 824 | . 26 34 7 39 35 . 17 17 47 72 . 75 66 44 25 66 74 57 30 . 1 2 . 1 89 Hits 1563 | . 37 119 21 67 125 . 27 60 92 142 . 137 122 131 40 104 191 53 22 . 7 2 . 1 63 Melee 40 | . . 7 . . 7 . . 4 . 11 . . . 1 . . 10 . . . . . . . . Projectile 1523 | . 37 112 21 67 118 . 27 56 92 131 . 137 122 130 40 104 181 53 22 . 7 2 . 1 63 AOE 8 | . . . . . . . . 2 . 2 . . . . 3 . 1 . . . . . . . . Critical Strikes 55 | . . 4 . 2 5 . 1 5 1 5 . 2 4 4 1 4 10 3 1 . 1 1 . . 1 Part Disruptions 3 | . . . . . . . . . 1 . . . . . 1 . 1 . . . . . . . . Damage Taken 24350 | . 370 1517 335 814 1734 . 493 973 846 1927 . 1643 2004 2365 863 1280 3962 1247 395 . 169 26 . 91 1296 Core 3782 | . 62 253 26 78 176 . 67 158 88 244 . 266 134 212 74 186 755 324 88 . 68 . . . 523 Absorbed by Shields 559 | . . . . 3 184 . . . . . . . 169 46 . 140 . . . . . . . . 17 Redirected to Shielding 64 | . . . . . . . . . 64 . . . . . . . . . . . . . . . . Ignored by Resistances 241 | . . . . . 50 . 57 . . . . . . . 32 31 71 . . . . . . . . Core Remaining (%) 54 | 100 75 . . 10 . . . 27 . . . 14 . . . 28 24 . . 64 . 94 . 100 67 Volleys Fired 1335 | 9 56 105 41 79 110 5 59 96 65 173 2 143 105 89 44 104 33 4 3 . . . . . 10 Largest 2 | 2 2 2 2 2 2 2 1 2 1 1 1 1 1 2 2 1 2 1 1 . . . . . 1 Hottest 141 | 70 112 112 46 53 110 94 63 130 75 75 5 69 90 141 138 85 112 105 7 . . . . . 113 Shots Fired 1762 | 18 100 194 83 160 219 8 59 102 66 173 2 145 105 102 62 113 34 4 3 . . . . . 10 Gun 963 | 18 90 193 83 158 219 8 42 55 . 20 . . . 39 34 2 2 . . . . . . . . Cannon 570 | . . . . . . . 1 27 43 117 . 131 75 46 13 88 15 4 . . . . . . 10 Launcher 38 | . 10 1 . 2 . . . . . . . . 4 11 1 . 9 . . . . . . . . Special 191 | . . . . . . . 16 20 23 36 2 14 26 6 14 23 8 . 3 . . . . . . Kinetic 881 | 9 40 95 83 158 93 5 21 6 . 87 . 124 69 5 . 71 15 . . . . . . . . Thermal 604 | 9 50 98 . . 126 3 . 69 43 50 . . 6 69 47 19 2 3 . . . . . . 10 Explosive 28 | . 10 1 . 2 . . . . . . . . 4 11 . . . . . . . . . . . Electromagnetic 58 | . . . . . . . 22 7 . . . 7 . 11 1 . 9 1 . . . . . . . Robot Hit Streak 27 | 10 12 10 10 27 24 . 21 9 9 9 1 11 8 9 22 13 10 3 6 . . . . . . Robot Miss Streak 10 | 3 6 6 3 3 3 . 1 4 3 10 1 4 4 2 2 2 2 . . . . . . . . Penetration Max 1 | . . . . . . . . . . . . 1 . 1 . . 1 . . . . . . . . Secondary Targets 7 | . . 1 . 4 2 . . . . . . . . . . . . . . . . . . . . Max Gunslinging Chain 1 | . . 1 . 1 1 . . . . . . . . . . . . . . . . . . . . Shots Hit Robots 1126 | 13 54 125 56 95 166 3 48 61 50 105 1 79 66 59 51 54 25 10 5 . . . . . . Core Hits 503 | 3 34 54 22 45 59 . 13 24 11 55 . 37 28 46 21 9 36 5 1 . . . . . . Critical Kills 9 | . . . . 1 . . . . . . . . 2 1 . 1 4 . . . . . . . . Critical Parts Destroyed 12 | . . 1 1 1 . . . . . . . . 3 2 . 2 2 . . . . . . . . Critical Strikes 49 | . 5 2 2 2 4 . . 1 . . . 2 13 3 2 6 6 1 . . . . . . . Burn 12 | . 5 1 . . 4 . . 1 . . . . . . 1 . . . . . . . . . . Meltdown 1 | . . . . . . . . . . . . . . 1 . . . . . . . . . . . Destroy 21 | . . 1 2 2 . . . . . . . . 5 2 . 3 6 . . . . . . . . Blast 13 | . . . . . . . . . . . . 2 8 . . 3 . . . . . . . . . Sever 1 | . . . . . . . . . . . . . . . 1 . . . . . . . . . . Impale 1 | . . . . . . . . . . . . . . . . . . 1 . . . . . . . Melee Attacks 84 | . . 12 . 1 1 3 . . . . . . . . 6 1 . 47 2 . . 3 . . 8 Impact . | . . . . . . . . . . . . . . . . . . . . . . . . . . Slashing 31 | . . 12 . 1 . . . . . . . . . . 6 1 . . . . . 3 . . 8 Piercing 49 | . . . . . . . . . . . . . . . . . . 47 2 . . . . . . Sneak Attacks 13 | . . 3 . . 1 3 . . . . . . . . 4 . . . 2 . . . . . . Combat Hostiles . | . . . . . . . . . . . . . . . . . . . . . . . . . . Follow-up Attacks . | . . . . . . . . . . . . . . . . . . . . . . . . . . Damage Inflicted 28704 | 168 1387 2211 914 1603 2872 . 566 1004 887 1951 . 3620 3138 2930 1378 1567 2076 316 116 . . . . . . Guns 9983 | 168 699 1749 879 1280 2872 . 487 593 . 346 . . . 299 568 . 43 . . . . . . . . Cannons 11678 | . . . . . . . 21 373 887 1605 . 3620 2127 933 249 1567 206 90 . . . . . . . Explosions 5754 | . 676 28 . 323 . . 58 38 . . . . 1011 1698 103 . 1819 . . . . . . . . Melee 1137 | . . 434 . . . . . . . . . . . . 361 . . 226 116 . . . . . . Ramming 152 | . 12 . 35 . . . . . . . . . . . 97 . 8 . . . . . . . . Kinetic 12795 | 80 265 848 879 1280 1170 . 282 39 . 1151 . 3476 2005 34 . 1080 206 . . . . . . . . Thermal 9648 | 88 434 901 . . 1702 . 58 860 887 800 . . 732 1204 817 487 609 69 . . . . . . . Explosive 3012 | . 676 28 . 323 . . . . . . . . 401 1584 . . . . . . . . . . . Electromagnetic 1960 | . . . . . . . 226 105 . . . 144 . 108 103 . 1253 21 . . . . . . . Impact . | . . . . . . . . . . . . . . . . . . . . . . . . . . Slashing 795 | . . 434 . . . . . . . . . . . . 361 . . . . . . . . . . Piercing 342 | . . . . . . . . . . . . . . . . . . 226 116 . . . . . . Highest Corruption 26 | . 2 12 12 12 . . 3 9 2 2 2 3 4 4 7 11 26 7 7 7 1 1 . . 2 Average Corruption 6 | . 1 11 12 12 . . 2 8 2 2 2 2 2 4 5 10 14 3 7 7 1 1 . . 1 Corruption Purged . | . . . . . . . . . . . . . . . . . . . . . . . . . . Corruption Blocked . | . . . . . . . . . . . . . . . . . . . . . . . . . . Effects 762 | . 17 61 28 59 . . 2 55 11 31 3 77 14 68 83 212 21 4 9 . 1 . . . 6 Message Errors 176 | . 5 13 4 16 . . . 7 1 6 1 21 3 15 20 55 3 . 3 . 1 . . . 2 Matter Fused 188 | . 7 11 5 14 . . 1 16 4 9 . 19 4 18 22 44 6 3 3 . . . . . 2 Heat Flow Errors 89 | . . 10 1 4 . . . 7 . . 2 10 1 7 15 28 2 . 1 . . . . . 1 Energy Discharges 96 | . 1 7 4 5 . . . 8 4 1 . 7 3 12 10 31 1 1 1 . . . . . . Parts Rejected 10 | . . 1 1 . . . . . . 4 . 1 . 1 1 1 . . . . . . . . . Parts Fused 7 | . . 1 1 1 . . . . . . . 1 . 2 1 . . . . . . . . . . Data Loss (minor) 93 | . 2 10 4 6 . . 1 9 1 4 . 10 3 8 5 28 1 . 1 . . . . . . Data Loss (major) 31 | . . 2 1 6 . . . 1 . 3 . 3 . . 3 9 2 . . . . . . . 1 Misfires 34 | . 2 1 2 4 . . . 4 1 2 . 3 . 2 3 10 . . . . . . . . . Alerts 17 | . . 1 1 1 . . . 1 . . . 1 . 3 3 5 1 . . . . . . . . Misdirections 8 | . . 1 3 . . . . . . . . . . . . . 4 . . . . . . . . Weapon Failures 13 | . . 3 1 2 . . . 2 . 2 . 1 . . . 1 1 . . . . . . . . Overload Shots . | . . . . . . . . . . . . . . . . . . . . . . . . . . Overflow Damage 791 | . 26 47 5 1 . . . 45 16 . . 115 236 38 54 133 55 . 20 . . . . . . Projectiles 438 | . . . . . . . . 19 16 . . 115 137 8 . 133 10 . . . . . . . . Explosions 227 | . 26 . . 1 . . . 26 . . . . 99 30 . . 45 . . . . . . . . Melee 126 | . . 47 5 . . . . . . . . . . . 54 . . . 20 . . . . . . Knockbacks 42 | . . . . . . . . . . 6 . 12 14 . 1 5 4 . . . . . . . . Impact 1 | . . . . . . . . . . . . . . . 1 . . . . . . . . . . Kinetic 37 | . . . . . . . . . . 6 . 12 12 . . 3 4 . . . . . . . . Secondary 4 | . . . . . . . . . . . . . 2 . . 2 . . . . . . . . . Self-Inflicted Damage 488 | . 14 . 17 . . . 50 53 . . . . 234 21 . . 99 . . . . . . . . Shots 13 | . 1 . . . . . 1 1 . . . . 3 2 . . 5 . . . . . . . . Rammed 11 | . 2 . 1 . . . . . . . . . . . 7 . 1 . . . . . . . . Targets Rammed 11 | . 2 . 1 . . . . . . . . . . . 7 . 1 . . . . . . . . Kicked . | . . . . . . . . . . . . . . . . . . . . . . . . . . Crushed . | . . . . . . . . . . . . . . . . . . . . . . . . . . Highest Temperature 405 | 45 153 405 61 245 114 22 5 255 5 153 251 248 157 226 285 290 327 60 96 . . . . . 192 Average Temperature 73 | 21 54 79 40 93 29 16 2 80 3 37 112 79 28 44 102 91 136 32 51 . . . . . 79 Received Heat Transfer 5430 | . 84 534 105 250 719 . 198 162 258 345 . 408 555 573 57 213 870 63 9 . 9 . . . 18 Effects 5 | . . 1 . . . . . 2 . . . . . . . 2 . . . . . . . . . Shutdowns 1 | . . 1 . . . . . . . . . . . . . . . . . . . . . . . Energy Bleed 2 | . . . . . . . . 2 . . . . . . . . . . . . . . . . . Interference 2 | . . . . . . . . . . . . . . . . 2 . . . . . . . . . Siege Activations . | . . . . . . . . . . . . . . . . . . . . . . . . . . Martial Activations . | . . . . . . . . . . . . . . . . . . . . . . . . . . Shielding Activations . | . . . . . . . . . . . . . . . . . . . . . . . . . . Robots Disrupted . | . . . . . . . . . . . . . . . . . . . . . . . . . . Combat Hostiles . | . . . . . . . . . . . . . . . . . . . . . . . . . . Robots Corrupted 9 | . . . 1 . . . 1 . . . . 1 . . . 1 5 . . . . . . . . Combat Hostiles 8 | . . . . . . . 1 . . . . 1 . . . 1 5 . . . . . . . . Parts Fried 15 | . . . 3 . . . . . . . . 1 . 1 . . 10 . . . . . . . . Impact Corruptions 3 | . . . 1 . . . . . . . . . . . . 2 . . . . . . . . . Robots Melted 3 | . . . . . 1 . . . . . . . . 2 . . . . . . . . . . . Combat Hostiles 3 | . . . . . 1 . . . . . . . . 2 . . . . . . . . . . . Parts Melted 32 | . 2 8 1 . 10 . . . . 2 . . 2 3 2 2 . . . . . . . . . Heat Transferred 17054 | 259 1591 2368 . . 3663 . 100 1530 1295 1104 . . 700 1870 1369 481 650 74 . . . . . . . Parts Sabotaged 3 | . . . . . . . . . . . . . . . . . 3 . . . . . . . . Parts Stolen . | . . . . . . . . . . . . . . . . . . . . . . . . . . Parts Stripped . | . . . . . . . . . . . . . . . . . . . . . . . . . . Power Chain Reactions 8 | . . . . . . . 1 1 . . . . . 1 . . 5 . . . . . . . . Alert | -11 -10 -9 -9 -9 -8 -8 -8 -8 -7 -7 -7 -7 -6 -6 -6 -6 -5 -4 -4 -4 -3 -3 -2 -2 -1 ------- Run | Yrd Mat Mat Sto Gar Mat Gar Mat Gar Fac Gar Fac Gar Fac Gar Fac Gar Fac Fac Upp Upp Res Tes Res DSF Acc Maximum Alert Level 5 | . . 1 1 3 2 3 1 2 1 3 1 5 4 5 3 5 5 4 . . . . . . . Low Security (%) 19 | 100 100 25 86 8 13 4 80 48 84 35 . 3 . . . . . . . . 100 100 100 100 100 Level 1 14 | . . 74 13 26 23 13 19 28 15 25 100 14 9 . . . . . . . . . . . . Level 2 18 | . . . . 41 63 74 . 23 . 30 . 17 48 19 6 . . 40 . . . . . . . Level 3 25 | . . . . 23 . 7 . . . 9 . 21 38 39 93 31 . 57 . . . . . . . Level 4 8 | . . . . . . . . . . . . 22 3 26 . 16 1 1 . . . . . . . Level 5 12 | . . . . . . . . . . . . 21 . 14 . 51 18 . . . . . . . . High Security 1 | . . . . . . . . . . . . . . . . . 80 . . . . . . . . Max Security . | . . . . . . . . . . . . . . . . . . . . . . . . . . Peak Influence 3281 | 5 144 295 254 1033 645 746 363 505 264 712 373 2179 1143 1846 1026 3281 2243 1104 . . 186 116 54 40 88 Initial 1722 | . . 48 121 118 503 138 363 9 264 . 373 149 1143 490 968 716 1722 1100 . . 174 83 54 40 17 Average 789 | . 66 200 97 520 396 494 107 247 68 323 293 1044 695 1037 835 1777 1841 769 . . 169 103 54 37 24 Influence Increases 16819 | 10 560 939 618 975 790 608 403 657 162 1012 . 2210 623 1566 1092 2805 1011 208 125 . 24 85 . . 336 Destroy 0b10 Robot/C 6110 | . 340 460 280 620 460 20 240 330 105 450 . 645 330 405 585 375 405 30 30 . . . . . . Destroy 0b10 Robot/NC 343 | 10 45 70 45 . 65 . 8 4 4 . . . 16 8 52 . 12 4 . . . . . . . Destroy Leader 1000 | . 70 128 130 30 118 . 56 16 24 32 . 32 80 40 122 56 50 8 8 . . . . . . Allied During Kill 826 | . . . 126 6 . 2 62 12 2 33 . 33 8 47 290 120 82 . 3 . . . . . . Successful Hack 282 | . 22 31 19 . 9 23 . . 27 27 . 11 11 11 4 11 . . . . . 25 . . 51 Select Force Hacks 30 | . 30 . . . . . . . . . . . . . . . . . . . . . . . . Disable Machine 462 | . 15 30 . . 45 . . 24 . 36 . 60 84 48 . 72 . 12 . . . 36 . . . Anti-Garrison Action 5673 | . . . . 300 . 563 . 227 . 302 . 1277 . 902 . 2102 . . . . . . . . . Destroy Structure 626 | . 38 10 3 19 3 . 13 20 . 48 . 80 70 93 15 69 78 34 . . . . . . 33 Partial Spotted 87 | . . 15 . . . . . . . . . . . . . . . . . . 24 24 . . 24 Lose Combat Pursuer 1380 | . . 195 15 . 90 . 24 24 . 84 . 72 24 12 24 . 384 120 84 . . . . . 228 Influence Decreases 16763 | 10 444 766 725 124 1610 75 1135 166 667 300 499 244 2101 421 1914 548 2049 1826 432 61 134 135 44 24 309 Entered New Map 7586 | . . 68 168 64 530 75 383 5 241 . 339 64 1036 211 878 308 1559 1144 232 61 84 65 44 14 13 Time Decay 4856 | 10 444 575 237 . 550 . 262 . 332 . 160 . 680 . 696 . 70 422 140 . 20 70 . . 188 Lost Part 1209 | . . 110 10 60 80 . 40 61 . 100 . 40 70 130 10 60 160 110 40 . 10 . . 10 108 Lost Ally 1540 | . . . 160 . . . 150 100 10 200 . 140 40 80 180 180 260 . 20 . 20 . . . . Purge Threat 1572 | . . 13 150 . 450 . 300 . 84 . . . 275 . 150 . . 150 . . . . . . . Squads Dispatched 74 | . 2 4 3 . 2 . 1 . 3 . . . 9 . 16 . 23 6 . . . . . 1 4 Investigation 7 | . 1 1 2 . 1 . . . . . . . . . 1 . . 1 . . . . . . . Extermination 15 | . . . . . . . . . 2 . . . 4 . 5 . . 2 . . . . . . 2 Reinforcement 17 | . 1 3 . . 1 . 1 . 1 . . . 1 . 4 . 1 1 . . . . . 1 2 Assault 34 | . . . . . . . . . . . . . 4 . 6 . 22 2 . . . . . . . Garrison 1 | . . . 1 . . . . . . . . . . . . . . . . . . . . . . Intercept . | . . . . . . . . . . . . . . . . . . . . . . . . . . Searches Triggered . | . . . . . . . . . . . . . . . . . . . . . . . . . . Unchained Authorized 1 | . . . . . . . . . . . . . . . . . . 1 . . . . . . . Construction Impeded 1 | . . . . . . . . . . . . . . . 1 . . . . . . . . . . Haulers Reinforced 1 | . . . . . . . . . . . . . . . 1 . . . . . . . . . . Active Scanning Responses . | . . . . . . . . . . . . . . . . . . . . . . . . . . Cargo Convoy Interrupts . | . . . . . . . . . . . . . . . . . . . . . . . . . . Stealth | -11 -10 -9 -9 -9 -8 -8 -8 -8 -7 -7 -7 -7 -6 -6 -6 -6 -5 -4 -4 -4 -3 -3 -2 -2 -1 --------- Run | Yrd Mat Mat Sto Gar Mat Gar Mat Gar Fac Gar Fac Gar Fac Gar Fac Gar Fac Fac Upp Upp Res Tes Res DSF Acc Distress Signals 25 | . 2 4 1 . 4 . 2 . . . . . . 1 5 . 1 3 . . . . . . 2 Communications Jammed . | . . . . . . . . . . . . . . . . . . . . . . . . . . Distress Signals . | . . . . . . . . . . . . . . . . . . . . . . . . . . Times Spotted 641 | . 25 48 17 29 41 1 26 33 14 52 . 49 37 41 42 31 79 20 12 . 6 2 . 1 35 Peak Tracking Total 20 | . 3 7 6 4 5 1 7 6 4 7 . 7 5 7 7 6 20 7 6 . 6 2 . 1 20 Tactical Retreats 57 | . . 8 1 . 5 . 1 2 . 5 . 4 2 1 1 . 13 5 3 . . . . . 6 Traps | -11 -10 -9 -9 -9 -8 -8 -8 -8 -7 -7 -7 -7 -6 -6 -6 -6 -5 -4 -4 -4 -3 -3 -2 -2 -1 ------- Run | Yrd Mat Mat Sto Gar Mat Gar Mat Gar Fac Gar Fac Gar Fac Gar Fac Gar Fac Fac Upp Upp Res Tes Res DSF Acc Traps Triggered 64 | . 3 1 2 8 3 . 2 3 1 5 . 17 . 4 4 8 . . . . . . . . 3 Indirectly . | . . . . . . . . . . . . . . . . . . . . . . . . . . Trap Hack Attempts . | . . . . . . . . . . . . . . . . . . . . . . . . . . Triggered . | . . . . . . . . . . . . . . . . . . . . . . . . . . Disarmed . | . . . . . . . . . . . . . . . . . . . . . . . . . . Reprogrammed . | . . . . . . . . . . . . . . . . . . . . . . . . . . Reused . | . . . . . . . . . . . . . . . . . . . . . . . . . . Traps Extracted . | . . . . . . . . . . . . . . . . . . . . . . . . . . Installed . | . . . . . . . . . . . . . . . . . . . . . . . . . . Triggered . | . . . . . . . . . . . . . . . . . . . . . . . . . . Machines | -11 -10 -9 -9 -9 -8 -8 -8 -8 -7 -7 -7 -7 -6 -6 -6 -6 -5 -4 -4 -4 -3 -3 -2 -2 -1 ---------- Run | Yrd Mat Mat Sto Gar Mat Gar Mat Gar Fac Gar Fac Gar Fac Gar Fac Gar Fac Fac Upp Upp Res Tes Res DSF Acc Machines Disabled 67 | . 1 2 . 4 3 5 . 7 . 7 . 9 7 8 . 10 . 1 . . . 3 . . . Max in Single Turn 3 | . 1 1 . 1 1 1 . 1 . 1 . 1 3 1 . 1 . 1 . . . 1 . . . Garrison Access 1 | . . . . . . . . . . . . . . . . . . . . . . . . . 1 Garrison Relay 29 | . . . . 4 . 5 . 4 . 4 . 4 . 4 . 4 . . . . . . . . . Machines Repaired . | . . . . . . . . . . . . . . . . . . . . . . . . . . Machines Dismantled . | . . . . . . . . . . . . . . . . . . . . . . . . . . Machines Sabotaged . | . . . . . . . . . . . . . . . . . . . . . . . . . . Overloaded Fab Kills . | . . . . . . . . . . . . . . . . . . . . . . . . . . Hacking | -11 -10 -9 -9 -9 -8 -8 -8 -8 -7 -7 -7 -7 -6 -6 -6 -6 -5 -4 -4 -4 -3 -3 -2 -2 -1 --------- Run | Yrd Mat Mat Sto Gar Mat Gar Mat Gar Fac Gar Fac Gar Fac Gar Fac Gar Fac Fac Upp Upp Res Tes Res DSF Acc Machines Accessed 96 | . 9 7 9 1 8 4 5 2 5 4 2 2 8 2 10 2 . 5 . . 1 1 1 . 8 Terminals 72 | . 7 5 8 1 6 4 2 2 3 4 1 2 3 2 7 2 . 4 . . . 1 1 . 7 Fabricators 4 | . . . . . . . . . 1 . . . 1 . 2 . . . . . . . . . . Repair Stations . | . . . . . . . . . . . . . . . . . . . . . . . . . . Recycling Units 6 | . 2 1 . . . . 1 . . . . . 2 . . . . . . . . . . . . Scanalyzers 5 | . . 1 . . 1 . 1 . . . . . 1 . . . . . . . 1 . . . . Garrison Access 9 | . . . 1 . 1 . 1 . 1 . 1 . 1 . 1 . . 1 . . . . . . 1 Total Hacks 249 | . 27 24 25 2 30 11 17 5 11 8 6 3 14 3 20 2 . 11 . . 5 11 3 . 11 Successful 123 | . 16 15 11 . 20 2 6 . 7 3 2 1 9 1 8 1 . 6 . . 2 5 1 . 7 Failed 123 | . 11 9 14 2 9 9 11 5 4 5 4 2 4 2 12 1 . 5 . . 3 5 2 . 4 Catastrophic 18 | . 1 1 1 . 1 1 1 1 . 1 1 . 2 1 3 . . . . . . 2 . . 1 Database Lockouts 3 | . . . . . 1 . . . . . . . 1 . . . . . . . . 1 . . . Manual 103 | . 14 13 13 . 12 4 11 . 3 2 4 . 2 . 11 . . 9 . . . 2 . . 3 Terminals 195 | . 20 21 24 2 20 11 12 5 9 8 4 3 4 3 13 2 . 10 . . . 11 3 . 10 Fabricators 7 | . . . . . . . . . 1 . . . 1 . 5 . . . . . . . . . . Repair Stations . | . . . . . . . . . . . . . . . . . . . . . . . . . . Recycling Units 13 | . 7 1 . . . . 2 . . . . . 3 . . . . . . . . . . . . Scanalyzers 22 | . . 2 . . 9 . 2 . . . . . 4 . . . . . . . 5 . . . . Garrison Access 12 | . . . 1 . 1 . 1 . 1 . 2 . 2 . 2 . . 1 . . . . . . 1 Terminal Hacks 55 | . 7 7 5 . 6 1 2 . 4 2 . 1 1 1 2 1 . 4 . . . 4 1 . 6 Record 5 | . . . . . . . . . . . . . . . . . . . . . . 4 . . 1 Part Schematic 3 | . 1 1 . . . . . . . . . . . . 1 . . . . . . . . . . Robot Analysis 1 | . 1 . . . . . . . . . . . . . . . . . . . . . . . . Prototype ID Bank 3 | . 1 1 1 . . . . . . . . . . . . . . . . . . . . . . Open Door 6 | . . . 1 . . . . . . 1 . . . . . . . . . . . . . . 4 Open DSF 2 | . . . . . . . . . . . . . 1 . . . . . . . . . 1 . . Level Access Points 1 | . . . . . . . . . . . . . . . . . . . . . . . . . 1 Branch Access Points 3 | . 1 1 . . . . . . . . . . . . . . . 1 . . . . . . . Emergency Access Points 3 | . . . . . . . . . 1 . . 1 . . . 1 . . . . . . . . . Alert Level 5 | . . . . . 2 . 1 . 1 . . . . . . . . 1 . . . . . . . Unreport Threat 8 | . . 1 1 . 3 . 1 . . . . . . . 1 . . 1 . . . . . . . Locate Traps 3 | . . . 1 . . . . . 2 . . . . . . . . . . . . . . . . Transport Status 1 | . . . 1 . . . . . . . . . . . . . . . . . . . . . . Recall Investigation 2 | . 1 1 . . . . . . . . . . . . . . . . . . . . . . . Recall Extermination 1 | . . . . . . . . . . . . . . . . . . 1 . . . . . . . Hauler Manifests 3 | . 1 2 . . . . . . . . . . . . . . . . . . . . . . . Zone Layout 2 | . 1 . . . 1 . . . . . . . . . . . . . . . . . . . . Garrison Registry 2 | . . . . . . 1 . . . 1 . . . . . . . . . . . . . . . Patrol Navigation 1 | . . . . . . . . . . . . . . 1 . . . . . . . . . . . Fabricator Hacks 4 | . . . . . . . . . . . . . 1 . 3 . . . . . . . . . . Load Schematic 2 | . . . . . . . . . . . . . . . 2 . . . . . . . . . . Build 2 | . . . . . . . . . . . . . 1 . 1 . . . . . . . . . . Repair Station Hacks . | . . . . . . . . . . . . . . . . . . . . . . . . . . Recycling Unit Hacks 6 | . 3 1 . . . . 1 . . . . . 1 . . . . . . . . . . . . Report Inventory 5 | . 2 1 . . . . 1 . . . . . 1 . . . . . . . . . . . . Retrieve Components 1 | . 1 . . . . . . . . . . . . . . . . . . . . . . . . Scanalyzer 15 | . . 2 . . 8 . . . . . . . 3 . . . . . . . 2 . . . . Retrieve Study 15 | . . 2 . . 8 . . . . . . . 3 . . . . . . . 2 . . . . Garrison Access Hacks 12 | . . . 1 . 1 . 1 . 1 . 2 . 2 . 2 . . 1 . . . . . . 1 Unlock Access 7 | . . . 1 . 1 . 1 . 1 . 1 . 1 . 1 . . . . . . . . . . Seal Access 1 | . . . . . . . . . . . . . . . . . . . . . . . . . 1 Coupler Status 4 | . . . . . . . . . . . 1 . 1 . 1 . . 1 . . . . . . . Unauthorized Hacks 31 | . 6 5 5 . 5 1 2 . 2 1 . . 1 . 1 . . 1 . . . 1 . . . Terminals 30 | . 5 5 5 . 5 1 2 . 2 1 . . 1 . 1 . . 1 . . . 1 . . . Botnet 30 | . 5 5 5 . 5 1 2 . 2 1 . . 1 . 1 . . 1 . . . 1 . . . Fabricators . | . . . . . . . . . . . . . . . . . . . . . . . . . . Repair Stations . | . . . . . . . . . . . . . . . . . . . . . . . . . . Recycling Units 1 | . 1 . . . . . . . . . . . . . . . . . . . . . . . . Tunnel 1 | . 1 . . . . . . . . . . . . . . . . . . . . . . . . Scanalyzers . | . . . . . . . . . . . . . . . . . . . . . . . . . . Garrison Access . | . . . . . . . . . . . . . . . . . . . . . . . . . . Data Cores Recovered 2 | . . . . . 1 . . . . . . . . . . . . 1 . . . . . . . Used 1 | . . . . . 1 . . . . . . . . . . . . . . . . . . . . Hacking Detections 77 | . 9 5 8 1 6 4 4 2 5 4 2 2 5 2 9 1 . 4 . . . 1 . . 3 Full Trace Events 3 | . . . . . . 1 . . . . . . . . 1 . . 1 . . . . . . . Feedback Events . | . . . . . . . . . . . . . . . . . . . . . . . . . . Feedback Blocked . | . . . . . . . . . . . . . . . . . . . . . . . . . . Robot Schematics Acquired . | . . . . . . . . . . . . . . . . . . . . . . . . . . Robots Built . | . . . . . . . . . . . . . . . . . . . . . . . . . . Authchips . | . . . . . . . . . . . . . . . . . . . . . . . . . . Time . | . . . . . . . . . . . . . . . . . . . . . . . . . . Total Robot Build Rating . | . . . . . . . . . . . . . . . . . . . . . . . . . . Part Schematics Acquired 3 | . 1 1 . . . . . . . . . . . . 1 . . . . . . . . . . Parts Built 4 | . . . . . . . . . . . . . 2 . 2 . . . . . . . . . . Authchips . | . . . . . . . . . . . . . . . . . . . . . . . . . . Time 95 | . . . . . . . . . . . . . 53 . 42 . . . . . . . . . . Total Part Build Rating 20 | . . . . . . . . . . . . . 12 . 8 . . . . . . . . . . Part Studies Acquired 15 | . . 2 . . 8 . . . . . . . 3 . . . . . . . 2 . . . . Parts Repaired . | . . . . . . . . . . . . . . . . . . . . . . . . . . Time . | . . . . . . . . . . . . . . . . . . . . . . . . . . Parts Recycled . | . . . . . . . . . . . . . . . . . . . . . . . . . . Recycled Matter . | . . . . . . . . . . . . . . . . . . . . . . . . . . Retrieved Matter . | . . . . . . . . . . . . . . . . . . . . . . . . . . Retrieved Components 3 | . 3 . . . . . . . . . . . . . . . . . . . . . . . . Parts Scanalyzed . | . . . . . . . . . . . . . . . . . . . . . . . . . . Part Schematics Acquired . | . . . . . . . . . . . . . . . . . . . . . . . . . . Parts Damaged . | . . . . . . . . . . . . . . . . . . . . . . . . . . Bothacking | -11 -10 -9 -9 -9 -8 -8 -8 -8 -7 -7 -7 -7 -6 -6 -6 -6 -5 -4 -4 -4 -3 -3 -2 -2 -1 ------------ Run | Yrd Mat Mat Sto Gar Mat Gar Mat Gar Fac Gar Fac Gar Fac Gar Fac Gar Fac Fac Upp Upp Res Tes Res DSF Acc Used RIF Installer 7 | . . . . 1 . 1 . 1 . 1 . 1 . 1 . 1 . . . . . . . . . Coupler Efficiency 1 | . . . . . . . . 1 . . . . . . . . . . . . . . . . . Command Fork 2 | . . . . . . . . . . 1 . 1 . . . . . . . . . . . . . Threat Obfuscator 1 | . . . . . . 1 . . . . . . . . . . . . . . . . . . . Zone Cloak 1 | . . . . . . . . . . . . . . 1 . . . . . . . . . . . Autooverride 1 | . . . . . . . . . . . . . . . . 1 . . . . . . . . . Robots Hacked 118 | . . . . . . . 6 15 12 23 1 10 11 6 10 12 5 . 4 . 1 . . . 2 Non-combat 22 | . . . . . . . 2 . 7 . 1 . 7 . 2 . 1 . 2 . . . . . . Combat 96 | . . . . . . . 4 15 5 23 . 10 4 6 8 12 4 . 2 . 1 . . . 2 Autooverrided 5 | . . . . . . . . . . . . . . . . 1 . . 1 . 1 . . . 2 Robot Hacks Applied 133 | . . . . . . . 11 17 16 26 1 10 16 6 10 11 6 . 3 . . . . . . parse_system 3 | . . . . . . . 1 . . . . . . . . . . . 2 . . . . . . find_chute 1 | . . . . . . . . . 1 . . . . . . . . . . . . . . . . map_walls 2 | . . . . . . . . . . . . . 1 . 1 . . . . . . . . . . drop_inventory 1 | . . . . . . . . . . . . . 1 . . . . . . . . . . . . locate_stockpiles 2 | . . . . . . . . . . . . . . . . . 2 . . . . . . . . find_recycling 1 | . . . . . . . . . 1 . . . . . . . . . . . . . . . . check_alert 3 | . . . . . . . 1 . . . . . 2 . . . . . . . . . . . . purge_threat 4 | . . . . . . . 1 . 1 . . . 2 . . . . . . . . . . . . find_terminals 1 | . . . . . . . 1 . . . . . . . . . . . . . . . . . . reprogram_traps 1 | . . . . . . . 1 . . . . . . . . . . . . . . . . . . block_reporting 1 | . . . . . . . . . 1 . . . . . . . . . . . . . . . . map_route 1 | . . . . . . . . . . . . . 1 . . . . . . . . . . . . mark_security 2 | . . . . . . . 1 . . . . . 1 . . . . . . . . . . . . find_shortcuts 1 | . . . . . . . . . . 1 . . . . . . . . . . . . . . . find_garrison 2 | . . . . . . . 1 . 1 . . . . . . . . . . . . . . . . link_fov 9 | . . . . . . . . . 4 . 1 . 3 . 1 . . . . . . . . . . broadcast_data 1 | . . . . . . . . . 1 . . . . . . . . . . . . . . . . spike_heat 3 | . . . . . . . . 1 . 1 . . . . 1 . . . . . . . . . . overload_power 1 | . . . . . . . . 1 . . . . . . . . . . . . . . . . . amplify_resonance 6 | . . . . . . . 1 . . 4 . 1 . . . . . . . . . . . . . disable_weapons 6 | . . . . . . . . 2 . 3 . . . . . 1 . . . . . . . . . reboot_system 3 | . . . . . . . . . 2 1 . . . . . . . . . . . . . . . overwrite_iff 48 | . . . . . . . 1 11 3 14 . 9 3 . 2 3 1 . 1 . . . . . . streamctrl_high 1 | . . . . . . . 1 . . . . . . . . . . . . . . . . . . formatsys_low 2 | . . . . . . . 1 . 1 . . . . . . . . . . . . . . . . formatsys_high 27 | . . . . . . . . 2 . 2 . . 2 6 5 7 3 . . . . . . . . Relay Couplers Released 122 | . . . . 16 . 24 . 16 . 15 . 19 . 18 . 14 . . . . . . . . . Machine Destruction 114 | . . . . 16 . 20 . 16 . 15 . 15 . 18 . 14 . . . . . . . . . Programmers 8 | . . . . . . 4 . . . . . 4 . . . . . . . . . . . . . Attached 55 | . . . . . . . 2 8 5 8 1 5 4 7 3 8 3 . 1 . . . . . . Fabnet Peak Effective % . | . . . . . . . . . . . . . . . . . . . . . . . . . . Robots Rewired 20 | . . . . . . 6 . 1 . 4 . . . 6 . 3 . . . . . . . . . Allies Hacked 5 | . . . . . . . . . . . . 1 . . 2 1 1 . . . . . . . . Hacks Repelled . | . . . . . . . . . . . . . . . . . . . . . . . . . . Allies | -11 -10 -9 -9 -9 -8 -8 -8 -8 -7 -7 -7 -7 -6 -6 -6 -6 -5 -4 -4 -4 -3 -3 -2 -2 -1 -------- Run | Yrd Mat Mat Sto Gar Mat Gar Mat Gar Fac Gar Fac Gar Fac Gar Fac Gar Fac Fac Upp Upp Res Tes Res DSF Acc Total Allies 125 | . . . 10 . . 6 3 13 4 21 . 12 6 15 8 17 4 . 3 . 1 . . . 2 Largest Group 12 | . . . 10 1 . 6 6 3 1 4 4 4 3 11 11 12 11 . 1 . . . . . 2 Highest-Rated Group 392 | . . . 88 8 . 114 114 64 26 102 102 102 75 344 344 365 392 . 12 . . . . . 60 Highest-Rated Ally 142 | . . . 16 8 . 21 29 34 26 32 31 40 32 85 90 90 142 . 12 . . . . . 30 Total Orders 72 | . . . . 1 . . . 2 1 4 2 6 1 24 5 24 2 . . . . . . . . STAY 41 | . . . . 1 . . . 1 1 3 1 3 . 14 3 13 1 . . . . . . . . ROAM 1 | . . . . . . . . . . . . . 1 . . . . . . . . . . . . FOLLOW 30 | . . . . . . . . 1 . 1 1 3 . 10 2 11 1 . . . . . . . . Ally Attacks 595 | . . . 61 . . 2 62 26 14 63 . 30 9 30 154 74 58 . 8 . 1 . . . 3 Total Damage 12635 | . . . 525 . . 73 1162 403 197 816 . 360 213 804 4595 1535 1849 . 79 . . . . . 24 Kills 123 | . . . 7 . . 1 12 9 . 9 . 7 1 7 40 16 12 . 2 . . . . . . Allies Corrupted 1 | . . . . . . . . . . . . . . . 1 . . . . . . . . . . Allies Melted 1 | . . . . . . . . . . . . . 1 . . . . . . . . . . . . Intel | -11 -10 -9 -9 -9 -8 -8 -8 -8 -7 -7 -7 -7 -6 -6 -6 -6 -5 -4 -4 -4 -3 -3 -2 -2 -1 ------- Run | Yrd Mat Mat Sto Gar Mat Gar Mat Gar Fac Gar Fac Gar Fac Gar Fac Gar Fac Fac Upp Upp Res Tes Res DSF Acc Active Infowar (turns) 3665 | 3 1473 427 . . . . . . . . . . . . . . 146 851 . . 14 150 16 52 533 Optics 980 | . . . . . . . . . . . . . . . . . 146 834 . . . . . . . Sensors 1290 | . . . . . . . . . . . . . . . . . . 663 . . . 26 16 52 533 Seismic 1901 | 3 1473 425 . . . . . . . . . . . . . . . . . . . . . . . T.N.C. 2 | . . 2 . . . . . . . . . . . . . . . . . . . . . . . Cloaking 634 | . . . . . . . . . . . . . . . . . . . . . 14 150 16 52 402 Robot Analysis Total 1 | . 1 . . . . . . . . . . . . . . . . . . . . . . . . Derelict Logs Recovered 1 | . . . . . . . . . . . . . . . . . . . 1 . . . . . . Drone Launches . | . . . . . . . . . . . . . . . . . . . . . . . . . . Drone Recoveries . | . . . . . . . . . . . . . . . . . . . . . . . . . . Exploration | -11 -10 -9 -9 -9 -8 -8 -8 -8 -7 -7 -7 -7 -6 -6 -6 -6 -5 -4 -4 -4 -3 -3 -2 -2 -1 ------------- Run | Yrd Mat Mat Sto Gar Mat Gar Mat Gar Fac Gar Fac Gar Fac Gar Fac Gar Fac Fac Upp Upp Res Tes Res DSF Acc Turns Passed 35413 | 222 1478 1986 593 1470 1594 1022 567 1707 1132 1980 335 3988 2698 3196 2916 5608 757 1023 280 10 47 150 16 52 586 Spaces Moved 18912 | 128 943 719 341 859 822 778 303 878 626 922 196 1654 906 1196 1394 2015 624 903 608 28 130 277 44 106 1512 Core 569 | 10 . . . . . . . . . . . . . . . 43 474 21 . . . . . . 21 Treads 3477 | 71 511 423 . . . . . . . . . 5 . 1184 1173 . 110 . . . . . . . . Legs 3548 | 31 . . . . . . . . . . . 910 723 . . 1844 40 . . . . . . . . Wheels 7752 | 16 432 296 341 859 822 778 303 878 626 922 196 739 183 12 221 128 . . . . . . . . . Hover 761 | . . . . . . . . . . . . . . . . . . 761 . . . . . . . Flight 2805 | . . . . . . . . . . . . . . . . . . 121 608 28 130 277 44 106 1491 Fastest Speed 22 | 50 100 116 116 116 116 120 105 113 125 125 145 145 125 165 116 50 50 40 26 28 27 27 37 37 22 Average Speed 150 | 134 133 210 116 122 132 120 118 160 147 142 150 184 243 219 182 242 101 92 34 28 28 36 37 48 32 Slowest Speed 2450 | 160 160 480 116 135 190 120 135 180 180 160 160 400 315 330 235 260 2450 166 40 28 107 37 37 445 100 Overloaded Moves . | . . . . . . . . . . . . . . . . . . . . . . . . . . Propulsion Burnouts . | . . . . . . . . . . . . . . . . . . . . . . . . . . Robots Hopped 29 | . . . . . . . . . . . . . . . . . . 4 4 . 3 1 . 1 16 Potential Cave-ins 22 | . . . . . . . . . . . . . . 1 . . . 18 . . . . . . 3 Cave-ins Triggered 2 | . . . . . . . . . . . . . . . . . . 2 . . . . . . . Exploration Rate (%) 49 | 7 97 62 68 72 59 98 29 82 21 89 5 90 32 68 32 91 24 22 71 5 5 30 3 81 35 Regions Visited 25 Branch Regions 4 Pre-discovered Areas 1 | . 1 . . . . . . . . . . . . . . . . . . . . . . . . Known Exits Taken 12 | . . 1 1 . 1 . 1 . 1 . 1 . 1 . 1 . . 1 1 . . 1 1 . . Unknown Exits Taken 5 | 1 1 . . . . . . . . . . . . . . . 1 . . 1 1 . . . . Scrap Searched 3 | . . . . . . . . . . . . . . . . . . . 3 . . . . . . Spaces Dug 76 | . 4 8 . . . . . . . . . . 6 . 2 2 . 37 . . . . . . 17 Terrain Destroyed 383 | . 36 8 . 4 . . 10 10 . . . 46 84 80 6 17 28 37 . . . . . . 17 Melee 44 | . . . . . . . . . . . . . . . 1 . . 36 . . . . . . 7 Projectile 108 | . . . . . . . . 2 . . . 46 25 1 5 17 1 1 . . . . . . 10 AOE 231 | . 36 8 . 4 . . 10 8 . . . . 59 79 . . 27 . . . . . . . . Terrain Rammed . | . . . . . . . . . . . . . . . . . . . . . . . . . . Walls Destroyed . | . . . . . . . . . . . . . . . . . . . . . . . . . . Machines Disabled . | . . . . . . . . . . . . . . . . . . . . . . . . . . Actions | -11 -10 -9 -9 -9 -8 -8 -8 -8 -7 -7 -7 -7 -6 -6 -6 -6 -5 -4 -4 -4 -3 -3 -2 -2 -1 --------- Run | Yrd Mat Mat Sto Gar Mat Gar Mat Gar Fac Gar Fac Gar Fac Gar Fac Gar Fac Fac Upp Upp Res Tes Res DSF Acc Total 24012 | 161 1057 977 455 1118 1123 861 460 1093 782 1423 236 2405 1279 1680 1700 2616 708 1013 668 28 136 321 43 104 1565 Wait 2120 | . 18 65 48 79 85 19 73 31 51 141 31 437 210 199 178 348 15 22 24 . 1 28 . . 17 Move 18834 | 127 942 718 341 858 822 777 303 877 625 921 195 1653 906 1195 1394 2014 623 893 600 27 123 274 43 103 1480 Hop 27 | . . . . . . . . . . . . . . . . . . 4 3 . 3 1 . 1 15 Pick Up 263 | 9 17 23 3 14 24 14 5 14 8 20 1 18 11 24 12 31 5 3 4 . . 3 . . . Fast Attach 211 | 5 1 6 4 3 16 1 2 10 7 14 1 23 10 14 15 19 13 16 15 . 4 4 . . 8 Attach 136 | 5 . 12 2 5 10 1 4 5 4 11 1 12 11 19 2 4 10 6 7 . . 3 . . 2 Detach 45 | 2 . . . . 1 . . 2 2 4 1 9 2 9 . . . 4 4 . 1 2 . . 2 Swap 184 | . 15 21 7 11 20 12 10 14 7 14 2 9 7 7 11 10 2 2 2 1 . . . . . Drop 283 | 4 6 15 7 12 34 14 4 17 13 14 2 33 17 16 27 17 6 11 4 . 4 3 . . 3 Fire 1335 | 9 56 105 41 79 110 5 59 96 65 173 2 143 105 89 44 104 33 4 3 . . . . . 10 Melee 84 | . . 12 . 1 1 3 . . . . . . . . 6 1 . 47 2 . . 3 . . 8 Ram 2 | . . . 1 . . . . . . . . . . . . . 1 . . . . . . . . Kick . | . . . . . . . . . . . . . . . . . . . . . . . . . . Crush 9 | . 2 . . . . . . . . . . . . . 7 . . . . . . . . . . Escape Stasis 249 | . . . . 56 . . . 24 . 40 . 68 . 6 4 30 . 1 . . . . . . 20 Rewire 230 | . . . 1 . . 15 . 3 . 71 . . . 102 . 38 . . . . . . . . . Trap . | . . . . . . . . . . . . . . . . . . . . . . . . . . Miscellaneous . | . . . . . . . . . . . . . . . . . . . . . . . . . . Route ------- -11/Scrapyard -10/Materials (discovered 5 exits: *Mat x3 / *Min x2) -9/Materials (discovered 4 exits: *Mat / *Min / *Sto x2) -9/Storage (discovered 2 exits: *Mat / Gar) -9/Garrison (discovered 3 exits: *Mat x3) -8/Materials (discovered 2 exits: *Fac / Gar) -8/Garrison (discovered 4 exits: *Mat x4) -8/Materials -8/Garrison (discovered 3 exits: *Fac x3) -7/Factory (discovered 2 exits: *Fac / Gar) -7/Garrison (discovered 3 exits: *Fac x3) -7/Factory -7/Garrison (discovered 4 exits: *Fac x3 / [*Fac]) -6/Factory (discovered 3 exits: [*Fac] / [*Low] / Gar) -6/Garrison (discovered 3 exits: *Fac x3) -6/Factory (discovered 3 exits: [*Fac] / [*Low] / Gar) -6/Garrison (discovered 4 exits: [*Fac x3] / [*Fac]) -5/Factory (discovered 2 exits: *Fac x2) -4/Factory (discovered 4 exits: *Res / *Upp x2 / Arm) -4/Upper Caves -4/Upper Caves -3/Research -3/Testing -2/Research -2/DSF -1/Access (discovered 2 exits: *Sur / *Com) To Epsilon Eridani History --------- Turn | Location | Event 7 | -11/Scrapyard | Discovered new exit (range 16) 223 | -11/Scrapyard | Entered Materials 227 | -10/Materials | Discovered new exit (range 11) 317 | -10/Materials | Build established: Mutant 369 | -10/Materials | Discovered new exit (range 13) 606 | -10/Materials | Discovered new exit (range 15) 1343 | -10/Materials | Discovered new exit (range 4) 1385 | -10/Materials | Discovered new exit (range 16) 1396 | -10/Materials | Identified exit to Mines 1701 | -10/Materials | Entered another Materials area 1701 | -9/Materials | Evolved 2 slots: Propulsion x1, Utility x1 1884 | -9/Materials | Identified exit to Mines 1884 | -9/Materials | Identified exit to Storage 2100 | -9/Materials | System corruption reached 10% 2190 | -9/Materials | Lost 4 parts (1n2u1w) 2624 | -9/Materials | Core integrity fell below 50% 2924 | -9/Materials | Build established: Scavenger-Mutant 3381 | -9/Materials | Discovered new exit (range 13) 3687 | -9/Materials | Entered Storage 3830 | -9/Storage | Assisted by bots powering up and referring to "LRC-V3" 3933 | -9/Storage | Lost 3 allies 4100 | -9/Storage | Discovered new exit (range 7) 4121 | -9/Storage | Build established: Commander-Mutant 4253 | -9/Storage | Garrison activated, responded to threat 4277 | -9/Storage | Identified exit to Garrison 4280 | -9/Storage | Entered Garrison 4280 | -9/Garrison | Accompanied by 1 ally 4307 | -9/Garrison | Lost 5 allies 4383 | -9/Garrison | Triggered checkpoint 4519 | -9/Garrison | Discovered new exit (range 11) 4545 | -9/Garrison | Triggered checkpoint 4564 | -9/Garrison | Build established: Mutant 4590 | -9/Garrison | Garrison Relay disabled 4760 | -9/Garrison | Triggered checkpoint 4797 | -9/Garrison | Garrison Relay disabled 4853 | -9/Garrison | Triggered checkpoint 4942 | -9/Garrison | Triggered checkpoint 4974 | -9/Garrison | Garrison Relay disabled 5121 | -9/Garrison | Discovered new exit (range 14) 5189 | -9/Garrison | Triggered checkpoint 5348 | -9/Garrison | Installed Relay Interface Framework 5372 | -9/Garrison | Discovered new exit (range 14) 5390 | -9/Garrison | Triggered checkpoint 5432 | -9/Garrison | Garrison Relay disabled 5628 | -9/Garrison | Triggered checkpoint 5631 | -9/Garrison | Core integrity fell below 20% 5749 | -9/Garrison | Build established: Scavenger-Mutant 5750 | -9/Garrison | Entered Materials 5750 | -8/Materials | Evolved 2 slots: Propulsion x1, Utility x1 6052 | -8/Materials | Lost 3 parts (1p1n1u) 6754 | -8/Materials | Discovered new exit (range 14) 6955 | -8/Materials | Central database locked down 7223 | -8/Materials | Build established: Bothacker-Mutant 7344 | -8/Materials | Identified exit to Garrison 7344 | -8/Materials | Entered Garrison 7344 | -8/Garrison | Discovered recently destroyed garrison 7457 | -8/Garrison | Garrison Relay disabled 7527 | -8/Garrison | Garrison Relay disabled 7692 | -8/Garrison | Garrison Relay disabled 7745 | -8/Garrison | Discovered new exit (range 14) 7941 | -8/Garrison | Discovered new exit (range 3) 8013 | -8/Garrison | Discovered new exit (range 11) 8066 | -8/Garrison | Garrison Relay disabled 8088 | -8/Garrison | Expanded RIF knowledge: Threat Obfuscation 8234 | -8/Garrison | Discovered new exit (range 21) 8234 | -8/Garrison | Discovered new exit (range 76) 8234 | -8/Garrison | Discovered new exit (range 76) 8234 | -8/Garrison | Discovered new exit (range 70) 8254 | -8/Garrison | Garrison Relay disabled 8366 | -8/Garrison | Entered Materials 8366 | -8/Materials | Accompanied by 6 allies 8724 | -8/Materials | Lost 8 allies 8933 | -8/Materials | Identified exit to Garrison 8933 | -8/Materials | Entered Garrison 9005 | -8/Garrison | Core integrity fell below 50% 9113 | -8/Garrison | Lost 3 allies 9139 | -8/Garrison | Lost 4 parts (2n2u) 9236 | -8/Garrison | Expanded RIF knowledge: Coupler Efficiency 9255 | -8/Garrison | Discovered new exit (range 13) 9329 | -8/Garrison | Triggered checkpoint 9374 | -8/Garrison | Garrison Relay disabled 9546 | -8/Garrison | Triggered checkpoint 9581 | -8/Garrison | Garrison Relay disabled 9700 | -8/Garrison | Triggered checkpoint 10033 | -8/Garrison | Triggered checkpoint 10073 | -8/Garrison | Garrison Relay disabled 10127 | -8/Garrison | Discovered new exit (range 10) 10231 | -8/Garrison | Triggered checkpoint 10314 | -8/Garrison | Discovered new exit (range 10) 10346 | -8/Garrison | Triggered checkpoint 10397 | -8/Garrison | Garrison Relay disabled 10640 | -8/Garrison | Entered Factory 10640 | -7/Factory | Evolved 2 slots: Utility x2 11474 | -7/Factory | Discovered new exit (range 10) 11766 | -7/Factory | Identified exit to Garrison 11772 | -7/Factory | Entered Garrison 11826 | -7/Garrison | Triggered checkpoint 11890 | -7/Garrison | Garrison Relay disabled 11912 | -7/Garrison | Discovered new exit (range 35) 11912 | -7/Garrison | Discovered new exit (range 65) 11912 | -7/Garrison | Discovered new exit (range 64) 12062 | -7/Garrison | Triggered checkpoint 12252 | -7/Garrison | Lost 4 allies 12360 | -7/Garrison | Triggered checkpoint 12491 | -7/Garrison | Garrison Relay disabled 12896 | -7/Garrison | Triggered checkpoint 12970 | -7/Garrison | Expanded RIF knowledge: Command Fork 12980 | -7/Garrison | Garrison Relay disabled 13083 | -7/Garrison | Triggered checkpoint 13292 | -7/Garrison | Build established: Botlord-Mutant 13461 | -7/Garrison | Triggered checkpoint 13519 | -7/Garrison | Garrison Relay disabled 13752 | -7/Garrison | Entered Factory 13752 | -7/Factory | Accompanied by 4 allies 14057 | -7/Factory | Identified exit to Garrison 14057 | -7/Factory | Watched by a mysterious "MATRIX" hacker. 14087 | -7/Factory | Entered Garrison 14087 | -7/Garrison | Accompanied by 4 allies 14164 | -7/Garrison | Triggered checkpoint 14208 | -7/Garrison | Garrison Relay disabled 14330 | -7/Garrison | Triggered checkpoint 14439 | -7/Garrison | P-70 Sage assimilated allied R1-8ED(b) 14470 | -7/Garrison | Core integrity fell below 50% 14474 | -7/Garrison | Lost 3 allies 14503 | -7/Garrison | Destroyed 9 combat bots 14559 | -7/Garrison | Triggered checkpoint 14797 | -7/Garrison | Garrison Relay disabled 14976 | -7/Garrison | Discovered new exit (range 14) 15057 | -7/Garrison | Triggered checkpoint 15468 | -7/Garrison | Garrison Relay disabled 15561 | -7/Garrison | Discovered new exit (range 13) 15633 | -7/Garrison | Triggered checkpoint 15803 | -7/Garrison | Triggered checkpoint 15938 | -7/Garrison | Discovered new exit (range 5) 16219 | -7/Garrison | Core integrity fell below 20% 17228 | -7/Garrison | Triggered checkpoint 17411 | -7/Garrison | Triggered checkpoint 17564 | -7/Garrison | Discovered new exit (range 8) 17615 | -7/Garrison | Triggered checkpoint 17660 | -7/Garrison | Expanded RIF knowledge: Command Fork 17696 | -7/Garrison | Garrison Relay disabled 18075 | -7/Garrison | Entered Factory 18075 | -6/Factory | Evolved 2 slots: Utility x1, Weapon x1 18383 | -6/Factory | Build established: Botlord-Tank 18916 | -6/Factory | Found Unknown Device 18916 | -6/Factory | Identified Launcher Loader 19300 | -6/Factory | Discovered new exit (range 15) 19475 | -6/Factory | First assault squad dispatched 20260 | -6/Factory | Lost 3 parts (1n1u1w) 20407 | -6/Factory | Fabricated Arm. Medium Treads (x2) 20532 | -6/Factory | Build established: Botlord-Mutant 20541 | -6/Factory | Discovered new exit (range 15) 20715 | -6/Factory | Central database locked down 20773 | -6/Factory | Identified exit to Garrison 20773 | -6/Factory | Entered Garrison 20840 | -6/Garrison | Triggered checkpoint 20870 | -6/Garrison | Destroyed 7 combat bots 20879 | -6/Garrison | Lost 7 parts (1p1n3u2w) 21130 | -6/Garrison | Build established: Bothacker-Mutant 21169 | -6/Garrison | Triggered checkpoint 21322 | -6/Garrison | Spotted B-75 Beast 21333 | -6/Garrison | Triggered checkpoint 21339 | -6/Garrison | Assimilated Beast 5a with formatsys_high 21368 | -6/Garrison | Lost 4 parts (3u1w) 21724 | -6/Garrison | Discovered new exit (range 11) 21803 | -6/Garrison | Triggered checkpoint 21857 | -6/Garrison | Garrison Relay disabled 21989 | -6/Garrison | Triggered checkpoint 22120 | -6/Garrison | Triggered checkpoint 22157 | -6/Garrison | Build established: Botlord-Mutant 22517 | -6/Garrison | Expanded RIF knowledge: Zone Cloak 22557 | -6/Garrison | Discovered new exit (range 9) 22597 | -6/Garrison | Build established: Botlord-Tank 22607 | -6/Garrison | Triggered checkpoint 22666 | -6/Garrison | Garrison Relay disabled 22695 | -6/Garrison | Triggered checkpoint 23103 | -6/Garrison | Build established: Botlord-Mutant 23209 | -6/Garrison | Triggered checkpoint 23287 | -6/Garrison | Garrison Relay disabled 23334 | -6/Garrison | Discovered new exit (range 11) 23493 | -6/Garrison | Garrison Relay disabled 23969 | -6/Garrison | Entered Factory 23969 | -6/Factory | Accompanied by 11 allies 24079 | -6/Factory | Build established: Botlord-Tank 24669 | -6/Factory | First assault squad dispatched 24690 | -6/Factory | Build established: Commander-Mutant 25293 | -6/Factory | Discovered new exit (range 8) 25755 | -6/Factory | Build established: Scavenger-Tank 26120 | -6/Factory | Build established: Commander-Tank 26336 | -6/Factory | Fabricated Remote Datajack (x2) 26602 | -6/Factory | Discovered new exit (range 15) 26641 | -6/Factory | Build established: Botlord-Mutant 26842 | -6/Factory | Identified exit to Garrison 26885 | -6/Factory | Entered Garrison 26885 | -6/Garrison | Accompanied by 5 allies 26977 | -6/Garrison | Triggered checkpoint 27042 | -6/Garrison | Lost 4 allies 27045 | -6/Garrison | Garrison Relay disabled 27114 | -6/Garrison | Core integrity fell below 50% 27140 | -6/Garrison | System corruption reached 10% 27162 | -6/Garrison | Released all parts (10) 27166 | -6/Garrison | Lost 4 allies 27175 | -6/Garrison | Lost 6 parts (4n1u1w) 27698 | -6/Garrison | Triggered checkpoint 27795 | -6/Garrison | Triggered checkpoint 27849 | -6/Garrison | Build established: Bothacker-Tank 28161 | -6/Garrison | Triggered checkpoint 28307 | -6/Garrison | Garrison Relay disabled 28373 | -6/Garrison | Discovered new exit (range 14) 28527 | -6/Garrison | Triggered checkpoint 28609 | -6/Garrison | Build established: Botlord-Tank 28643 | -6/Garrison | Triggered checkpoint 28989 | -6/Garrison | Triggered checkpoint 29292 | -6/Garrison | Garrison Relay disabled 29390 | -6/Garrison | Discovered new exit (range 10) 29545 | -6/Garrison | Triggered checkpoint 29600 | -6/Garrison | Discovered new exit (range 6) 30183 | -6/Garrison | Triggered checkpoint 30213 | -6/Garrison | Garrison Relay disabled 30318 | -6/Garrison | Discovered new exit (range 14) 30422 | -6/Garrison | Expanded RIF knowledge: Autooverride 32437 | -6/Garrison | Found Relay Coupler [Proto] 32441 | -6/Garrison | Found Relay Coupler [Proto] 32493 | -6/Garrison | Entered Factory 32493 | -5/Factory | Accompanied by 11 allies 32493 | -5/Factory | Evolved 2 slots: Power x1, Utility x1 32640 | -5/Factory | High security lockdown imminent 32671 | -5/Factory | Lost 4 allies 32720 | -5/Factory | High security lockdown engaged 32798 | -5/Factory | Lost 4 allies 32822 | -5/Factory | Discovered new exit (range 7) 32878 | -5/Factory | Lost 4 allies 32903 | -5/Factory | Lost 4 parts (1p3u) 32937 | -5/Factory | Destroyed 14 combat bots 32988 | -5/Factory | System corruption reached 10% 33000 | -5/Factory | Released all parts (9) 33005 | -5/Factory | Core integrity fell below 50% 33032 | -5/Factory | Lost 11 parts (1p2n5u3w) 33249 | -5/Factory | Discovered new exit (range 4) 33250 | -5/Factory | Entered another Factory area 33250 | -4/Factory | Evolved 2 slots: Propulsion x2 33287 | -4/Factory | Build established: Mutant 33750 | -4/Factory | First assault squad dispatched 33838 | -4/Factory | Spotted B-86 Titan 33940 | -4/Factory | Unchained authorized (1B-0RG) 33974 | -4/Factory | Build established: Hacker-Scout 34084 | -4/Factory | Crushed by falling debris 34153 | -4/Factory | Lost 4 parts (1p1n2u) 34212 | -4/Factory | Crushed by falling debris 34221 | -4/Factory | Identified exit to Upper Caves 34221 | -4/Factory | Identified exit to Armory 34241 | -4/Factory | Discovered new exit (range 15) 34273 | -4/Factory | Entered Upper Caves 34294 | -4/Upper Caves | Identified exit to Upper Caves 34301 | -4/Upper Caves | Lost 4 parts (1p1n1u1w) 34303 | -4/Upper Caves | Spotted B-86 Titan 34500 | -4/Upper Caves | Found DCF Scrap (13 items) 34553 | -4/Upper Caves | Entered another Upper Caves area 34560 | -4/Upper Caves | Discovered new exit (range 8) 34563 | -4/Upper Caves | Entered Research 34563 | -3/Research | Evolved 2 slots: Utility x2 34571 | -3/Research | Lost 3 parts (2n1u) 34606 | -3/Research | Discovered new exit (range 5) 34610 | -3/Research | Entered Testing 34626 | -3/Testing | Central database locked down 34656 | -3/Testing | Found Prototype Energy Cannon 34656 | -3/Testing | Identified Disintegrator 34692 | -3/Testing | Found Portable AFG 34698 | -3/Testing | Discovered new exit (range 9) 34707 | -3/Testing | Spotted Alpha 7 34760 | -3/Testing | Identified exit to Research 34760 | -3/Testing | Entered Research 34760 | -2/Research | Evolved 2 slots: Propulsion x2 34776 | -2/Research | Identified exit to DSF 34776 | -2/Research | Entered DSF 34800 | -2/DSF | Additional patrols routed to DSF 34822 | -2/DSF | Discovered new exit (range 16) 34827 | -2/DSF | Identified exit to Access 34828 | -2/DSF | Entered Access 34828 | -1/Access | Evolved 2 slots: Propulsion x1, Utility x1 34884 | -1/Access | Discovered new exit (range 7) 34886 | -1/Access | Identified exit to Command 34888 | -1/Access | Build established: Hacker-Mutant 34914 | -1/Access | Spotted B-99 Colossus 35051 | -1/Access | Spotted B-99 Colossus 35110 | -1/Access | Identified exit to Surface 35404 | -1/Access | Released all parts (8) 35414 | *** | Escaped! Last Messages --------------- 35395_ Field strength at 18. 35396_ Field strength at 5. 35397_ Stasis field depleted. 35401_ Relay Coupler [Swarmer] destroyed. 35403_ Field Propulsion Array+ destroyed. 35404_ Released Imp. Hacking Suite. 35404_ Released Chainsword. 35404_ Released Imp. System Shield. 35404_ Released Adv. Coolant Injector. 35404_ Released System Shield. 35404_ Released Hacking Suite. 35404_ Released Mak. System Shield. 35404_ Released Adv. Signal Interpreter. 35410_ Connecting with Terminal... >>Open(Door) Sealed Barrier opened. 35411_ The Access Shell folds into the floor. 35413_ M-36 Artificer repairs S-43 Plague. [Achievement: 30k Club] [Achievement: 40k Club] Map ----- +----------------------------------------------------+ | ?????##### % # "" "" ??#??????# #????????? | | ?????????# # ?# ?????# #????????? | | ?????????# # #? ????# #????????? | | ?????????# # #?? ???# #????????# | | ?????????# ###############/### #?????? | | ?????????# #???? ] | | ?????????#* #?? | | ?????????########+#################### # "" ""?? | | ??????????????? ???????#######???# + ""T""?? | | ????????????? #??????? ??# # """ ? | | ???????????# #???????? ??# #?? | | ???????????# #????????? " ?# #???? | | ???????????# #?????" """ ?# #??????### | | ???????????# #????""" """ # #????????? | | ???????????# #??? " " # #????????? | | ???????????# #? + #????????? | | ???????????# #? # #????????? | | ???????????##########? # #????????? | | ???????????????????????#############?#! #????????? | | ?????????????????????????????###?????#/ #????????? | | ????????????????????########## #######p #????????? | | ????????????????????" sms#????????? | | ????????????????????" #????????? | | ????????????????????" s #????????? | | ????????????????????" s #????????? | | ????????????????????" "@ #????????? | | ????????????????????" "" #????????? | | ????????????????????" #????????? | | ????????????????????" #????????? | | ????????????????????" """ """ #????????? | | ????????????????????" """T""" #????????? | | ????????????????????########## ####### #????????? | | ?????????????????????????????###?????? #????????? | | ?????????????????????????????????????? #????????? | | ?????????????????????????????????????? #????????? | | ?????????????????????????????????????? #????????? | | ?????????????????????????????????????? ?????????? | | ?????????????????????????????????????????????????? | | ?????????????????????????????????????????????????? | | ?????????????????????????????????????????????????? | | ?????????????????????????????????????????????????? | | ?????????????????????????????????????????????????? | | ?????????????????????????????????????????????????? | | ?????????????????????????????????????????????????? | | ?????????????????????????????????????????????????? | | ?????????????????????????????????????????????????? | | ?????????????????????????????????????????????????? | | ?????????????????????????????????????????????????? | | ?????????????????????????????????????????????????? | | ?????????????????????????????????????????????????? | +----------------------------------------------------+ Best States ------------- Heat Dissipation 90 Coolant Potential 100 Energy Generation 31 Energy Capacity 985 Matter Stores 300 Matter Capacity 300 Sight Range 22 Robot Scan Range 16 Terrain Scan Density 10 Cloak Strength 3 Base Temperature (-) 100 Armor Coverage 825 Resistance: KI 30 Resistance: TH 20 Propulsion Shielding 66 Point Defense Rating 160 Evasion (%) 65 Targeting Accuracy 6 Armor Integrity Analysis 40 Recoil Reduction 4 Salvage Targeting 2 Offensive Hacking 34 Defensive Hacking 33 Relay Coupler Types 5 Relay Coupler Value 111 Authchip Count 2 Item Schematics ----------------- Hcp. Storage Unit | -10/Materials | Hacked Arm. Wheel | -9/Materials | Hacked Remote Datajack | -6/Factory | Hacked Robot Schematics ------------------ None Fabricated ------------ Arm. Medium Treads | x2 | -6/Factory | Preloaded Remote Datajack | x2 | -6/Factory Repaired ---------- Nothing Studied --------- Beam Rifle | -9/Materials | Hacked Lgt. EM Pulse Cannon | -9/Materials | Hacked EM Pulse Cannon | -8/Materials | Hacked Com. Wheel | -8/Materials | Hacked Minigun | -8/Materials | Hacked Nuclear Core | -8/Materials | Hacked Lgt. Deuterium Engine | -8/Materials | Hacked Lgt. Treads | -8/Materials | Hacked Grenade Launcher | -8/Materials | Hacked EMP Blaster | -8/Materials | Hacked Hvy. Plasma Cannon | -6/Factory | Hacked Remote Datajack | -6/Factory | Hacked Lrn. Missile Launcher | -6/Factory | Hacked VTOL Module | -3/Research | Hacked Field Propulsion Array | -3/Research | Hacked Alien Tech Used ----------------- None Achievements -------------- 30k Club 40k Club Beloved Hack The Planet Hackerman Pwned The Better Part Of Valor Challenges ------------ None Game ------ Seed MiningAluminumBeamcaster Manual? 0 Play Time 05:06:52 Cumulative 111.6 hours Start 2026.03.10 @ 13:21:07 End 2026.03.11 @ 00:17:06 Sessions 7 Manual Loads 0 Difficulty Rogue Special Mode None Game No. 97 Rogue 97 Adventurer 0 Explorer 0 Win Type 0 Total 2 Types 2/0/0/0/0/0/0/0/0/0 Lore% 64 Gallery% 52 Achievement% 43 Wizard Run 0 Options --------- Layout 2 ASCII 0 Keyboard 0 Movement Mouse Keybinds 0 Fullscreen 1 Font 24/Smallcaps Map View 50x44 Zoom Use 0% Tactical HUD 1 Map Filters NONE Filters NONE Steam 1 RUN: f8722f16-8d59-4ed1-bc34-1bac3542f666